bitfinex/quotes_SOLUSD_20240813
["timestamp","ask_amount","ask_price","bid_price","bid_amount"]
[1723525772813,6.9071,144.78,144.73,6.9093]
[1723525774116,77.47647,144.79,144.72,24.1839]
[1723525774315,20.12549,144.78,144.72,24.1839]
[1723525774522,51.9075,144.77,144.72,24.1839]
[1723525775903,6.9075,144.77,144.72,24.1839]
[1723525783056,6.9075,144.77,144.73,6.9093]
[1723525783245,39.757,144.78,144.73,6.9093]
[1723525783919,6.9076,144.77,144.73,6.9093]
[1723525784119,6.9076,144.77,144.72,24.1838]
[1723525784320,57.97549,144.76,144.7,6.0504]
[1723525784608,12.85,144.74,144.7,12.9608]
[1723525786137,19.7589,144.74,144.69,39.6105]
[1723525788735,19.7589,144.74,144.7,6.9107]
[1723525788924,12.85,144.74,144.7,6.9107]
[1723525789123,12.85,144.74,144.69,39.6105]
[1723525789440,19.7593,144.74,144.69,24.1895]
[1723525790521,19.7593,144.74,144.7,6.9107]
[1723525791247,19.13776091,144.77,144.71,18.657517]
[1723525791248,29.2446,144.77,144.71,18.657517]
[1723525791423,12.85,144.77,144.73,6.9094]
[1723525792955,19.7576,144.77,144.73,6.9094]
[1723525793642,12.85,144.77,144.73,6.9094]
[1723525794136,26.9071,144.78,144.73,6.9094]
[1723525794625,26.9071,144.78,144.71,23.4807]
[1723525794626,26.9071,144.78,144.74,6.9088]
[1723525795016,20.0,144.78,144.74,6.9088]
[1723525795233,22.6064,144.8,144.76,6.9079]
[1723525795435,6.9062,144.8,144.76,6.9079]
[1723525795819,19.7556,144.81,144.76,6.9079]
[1723525796223,19.7556,144.81,144.76,8.28931251]
[1723525796623,19.7556,144.81,144.77,6.9073]
[1723525796822,6.9056,144.81,144.77,6.9073]
[1723525797017,6.9056,144.81,144.76,6.9078]
[1723525797634,6.9056,144.81,144.76,8.28920059]
[1723525797842,6.9056,144.81,144.76,6.9078]
[1723525798335,19.7556,144.81,144.76,6.9078]
[1723525804150,6.9052,144.82,144.76,1.38140018]
[1723525804336,19.7546,144.83,144.78,6.9066]
[1723525804521,20.0,144.82,144.78,6.9066]
[1723525804923,20.0,144.82,144.78,8.28783092]
[1723525806059,26.9052,144.82,144.77,24.1752]
[1723525806230,6.9056,144.81,144.77,24.1752]
[1723525807458,71.7757,144.91,144.78,21.6075]
[1723525807627,71.7757,144.91,144.82,6.9049]
[1723525807628,12.85,144.88,144.82,6.9049]
[1723525808144,12.85,144.88,144.82,8.28579786]
[1723525808832,2.67491631,144.91,144.82,8.28579786]
[1723525809028,32.4882,144.92,144.83,6.9045]
[1723525809029,6.9026,144.88,144.83,6.9045]
[1723525811930,6.9018,144.89,144.83,17.261]
[1723525812136,6.9018,144.89,144.84,1.38057567]
[1723525812348,12.85,144.91,144.83,17.261]
[1723525812556,6.9013,144.9,144.85,6.9036]
[1723525812738,32.39444252,144.93,144.86,1.38052871]
[1723525813260,32.39444252,144.93,144.87,6.9026]
[1723525813261,26.9007,144.92,144.87,6.9026]
[1723525813864,6.9007,144.92,144.87,6.9026]
[1723525814641,32.39444252,144.93,144.88,8.28233923]
[1723525814642,39.29434252,144.93,144.88,8.28233923]
[1723525814969,12.85,144.93,144.88,6.902]
[1723525815838,6.9004,144.92,144.88,6.902]
[1723525816240,6.8999,144.93,144.88,6.902]
[1723525816550,6.8984,144.96,144.91,6.9007]
[1723525816751,6.8989,144.95,144.91,6.9007]
[1723525816957,6.8989,144.95,144.9,6.9012]
[1723525817670,6.8985,144.96,144.91,6.9007]
[1723525818750,13.4586951,144.97,144.91,15.9067]
[1723525818954,20.3565951,144.97,144.92,6.9001]
[1723525819153,6.8984,144.96,144.92,6.9001]
[1723525819573,6.8984,144.96,144.91,40.0587]
[1723525820061,13.4586951,144.97,144.91,40.0587]
[1723525820364,6.8989,144.95,144.91,33.158]
[1723525821572,6.8989,144.95,144.91,40.0587]
[1723525821866,20.3570951,144.97,144.91,40.0587]
[1723525822373,6.8985,144.96,144.91,40.0587]
[1723525822760,6.8989,144.95,144.91,40.0587]
[1723525823102,13.4586951,144.97,144.92,6.9003]
[1723525823959,20.3566951,144.97,144.92,6.9003]
[1723525824363,13.4586951,144.97,144.91,40.0587]
[1723525825867,6.899,144.95,144.91,40.0587]
[1723525827961,6.8985,144.96,144.91,40.0587]
[1723525828469,6.8985,144.96,144.91,33.158]
[1723525828668,6.8985,144.96,144.92,6.9003]
[1723525829464,0.6086951,144.97,144.93,17.2485]
[1723525829788,0.6086951,144.97,144.93,24.148]
[1723525829957,0.6086951,144.97,144.93,25.52778684]
[1723525830613,0.6086951,144.97,144.94,6.8992]
[1723525831586,0.6086951,144.97,144.95,8.27851782]
[1723525831788,0.6086951,144.97,144.96,8.27789598]
[1723525832682,0.6086951,144.97,144.95,17.2465]
[1723525833001,0.6086951,144.97,144.94,6.899]
[1723525833497,7.5066951,144.97,144.93,6.4136]
[1723525833695,20.3566951,144.97,144.93,6.4136]
[1723525834013,20.3566951,144.97,144.92,24.1502]
[1723525834195,6.8986,144.96,144.92,17.2503]
[1723525834370,6.8985,144.96,144.92,17.2503]
[1723525834685,19.7489,144.95,144.91,15.9067]
[1723525835632,12.85,144.95,144.91,22.8074]
[1723525840207,12.85,144.95,144.91,6.9007]
[1723525840386,12.85,144.95,144.92,6.9002]
[1723525841986,6.8998,144.94,144.89,23.6549]
[1723525842197,12.85,144.91,144.87,6.9026]
[1723525842507,12.85,144.91,144.86,23.5903]
[1723525842887,12.85,144.91,144.88,6.9021]
[1723525846782,0.6086951,144.97,144.89,6.6603]
[1723525846988,0.6086951,144.97,144.9,14.48085577]
[1723525847214,0.6086951,144.97,144.94,6.8992]
[1723525847402,0.6086951,144.97,144.93,6.8997]
[1723525847914,0.6086951,144.97,144.94,6.8994]
[1723525848211,0.6086951,144.97,144.96,6.8984]
[1723525849993,0.6086951,144.97,144.95,17.2465]
[1723525850416,20.3566951,144.97,144.89,6.6603]
[1723525850640,13.4586951,144.97,144.89,6.6603]
[1723525850913,19.7489,144.95,144.9,6.9009]
[1723525851286,12.85,144.95,144.91,6.9006]
[1723525851801,12.85,144.95,144.92,6.9002]
[1723525852404,12.85,144.95,144.91,6.9007]
[1723525854436,7.5066951,144.97,144.92,6.9003]
[1723525854622,20.3566951,144.97,144.92,6.9003]
[1723525854935,20.3566951,144.97,144.92,6.8999]
[1723525856238,0.6086951,144.97,144.96,6.8984]
[1723525856407,0.6086951,144.97,144.96,7.14938]
[1723525856607,0.6086951,144.97,144.96,20.12487]
[1723525856808,0.6086951,144.97,144.96,21.62941094]
[1723525859905,0.6086951,144.97,144.96,8.77941094]
[1723525860329,0.6086951,144.97,144.96,7.40036]
[1723525860518,0.6086951,144.97,144.96,8.77945189]
[1723525863438,0.6086951,144.97,144.96,7.40036]
[1723525864735,0.6086951,144.97,144.96,7.27487]
[1723525866945,0.6086951,144.97,144.96,8.65406938]
[1723525867142,0.6086951,144.97,144.96,8.77955938]
[1723525867644,15.6639,145.11,144.98,0.12549]
[1723525867940,22.87386376,145.11,145.0,0.12549]
[1723525868128,22.87386376,145.11,145.0,45.50196]
[1723525868445,15.6639,145.11,145.0,45.50196]
[1723525868644,6.8922,145.1,145.05,6.894]
[1723525869120,6.8922,145.1,145.06,1.37855364]
[1723525869326,20.0,145.09,145.06,1.37855364]
[1723525869535,20.0,145.09,145.05,6.894]
[1723525870045,26.8925,145.09,145.04,24.1303]
[1723525870643,26.8925,145.09,145.05,1.37865032]
[1723525870849,26.8925,145.09,145.05,1.37864925]
[1723525871422,6.8927,145.08,145.04,24.1303]
[1723525872745,35.54156599,145.12,145.06,0.12549]
[1723525872746,0.8285443,145.12,145.06,0.12549]
[1723525872941,0.8285443,145.12,145.11,6.8913]
[1723525873142,0.8285443,145.12,145.06,0.25098]
[1723525873343,0.8285443,145.12,145.06,0.12549]
[1723525873652,0.8285443,145.12,145.05,22.96269]
[1723525874021,0.8285443,145.12,145.08,6.8924]
[1723525874260,7.7194443,145.12,145.05,22.96269]
[1723525874630,7.7194443,145.12,145.07,6.8928]
[1723525875446,6.8914,145.11,145.06,24.1273]
[1723525875749,6.8921,145.1,145.02,0.12549]
[1723525876064,6.8921,145.1,145.05,6.8941]
[1723525876724,6.8923,145.09,145.05,6.8941]
[1723525876919,16.5203,145.11,145.05,6.8941]
[1723525877121,16.5203,145.11,145.06,6.8936]
[1723525877327,23.4117,145.11,145.06,6.8936]
[1723525878037,6.8918,145.1,145.06,6.8936]
[1723525878236,0.8285443,145.12,145.02,0.12549]
[1723525878437,0.8285443,145.12,145.09,6.8922]
[1723525878739,0.8285443,145.12,145.1,1.37807718]
[1723525878948,0.8285443,145.12,145.11,1.37807727]
[1723525879634,0.8285443,145.12,145.11,8.26937727]
[1723525879839,0.8285443,145.12,145.11,24.1196]
[1723525880231,0.8285443,145.12,145.11,17.2283]
[1723525880556,0.8285443,145.12,145.11,18.60641004]
[1723525881249,0.8285443,145.12,145.11,17.2283]
[1723525882252,0.8285443,145.12,145.11,18.60643778]
[1723525882452,0.8285443,145.12,145.11,17.2283]
[1723525882828,0.8285443,145.12,145.11,18.60643503]
[1723525883239,0.8285443,145.12,145.11,17.2283]
[1723525884262,0.8285443,145.12,145.11,24.1196]
[1723525884429,0.8285443,145.12,145.11,25.99919048]
[1723525884760,0.8285443,145.12,145.11,70.99919048]
[1723525887248,0.8285443,145.12,145.11,24.37058]
[1723525887435,0.8285443,145.12,145.11,24.1196]
[1723525889863,0.8285443,145.12,145.11,24.62156]
[1723525891259,0.8285443,145.12,145.11,24.37058]
[1723525891462,0.8285443,145.12,145.11,24.62156]
[1723525892643,0.8285443,145.12,145.11,24.49607]
[1723525892846,0.8285443,145.12,145.11,24.37058]
[1723525893654,6.8854,145.24,145.12,0.12549]
[1723525893940,17.0733443,145.27,145.19,17.218]
[1723525893941,32.01,145.26,145.19,17.218]
[1723525894142,32.01,145.26,145.2,1.37713329]
[1723525894466,32.01,145.26,145.21,1.37713364]
[1723525894650,6.8847,145.25,145.21,1.37713364]
[1723525895635,17.0733443,145.27,145.21,18.59263364]
[1723525895636,49.0833443,145.27,145.21,18.59263364]
[1723525895949,38.8948,145.25,145.2,6.8865]
[1723525896143,38.8947,145.25,145.18,17.2195]
[1723525896343,38.8947,145.25,145.19,0.12549]
[1723525896740,38.8947,145.25,145.2,6.8866]
[1723525897274,38.8946,145.25,145.2,6.887]
[1723525897454,6.8852,145.24,145.19,6.8875]
[1723525897775,0.8285443,145.27,145.21,0.12549]
[1723525898067,0.8285443,145.27,145.21,0.25098]
[1723525898272,0.8285443,145.27,145.22,0.25098]
[1723525898445,0.8285443,145.27,145.23,0.25098]
[1723525898648,0.8285443,145.27,145.26,6.8842]
[1723525901351,0.8285443,145.27,145.26,7.38616]
[1723525901778,0.8285443,145.27,145.26,7.00969]
[1723525901968,16.2448,145.39,145.35,6.8795]
[1723525902166,0.8285443,145.41,145.36,1.37563342]
[1723525902343,0.8285443,145.41,145.32,0.12549]
[1723525902544,0.8285443,145.41,145.37,6.8789]
[1723525902744,0.8285443,145.41,145.37,24.0763]
[1723525902945,7.7058443,145.41,145.34,0.12549]
[1723525903163,0.8285443,145.41,145.37,6.8786]
[1723525903369,0.8285443,145.41,145.37,6.8789]
[1723525903966,0.8285443,145.41,145.36,17.1979]
[1723525904447,0.8285443,145.41,145.36,18.57353484]
[1723525904650,0.8285443,145.41,145.37,6.8789]
[1723525904963,0.8285443,145.41,145.38,8.25385884]
[1723525905548,0.8285443,145.41,145.38,1.37545884]
[1723525905750,0.8285443,145.41,145.39,1.37546153]
[1723525906154,0.8285443,145.41,145.38,1.37535006]
[1723525906350,0.8285443,145.41,145.38,8.25375006]
[1723525906771,0.8285443,145.41,145.37,7.00439]
[1723525907074,0.8285443,145.41,145.38,6.8785]
[1723525907377,0.8285443,145.41,145.37,0.12549]
[1723525907567,0.8285443,145.41,145.4,6.8775]
[1723525907877,0.8285443,145.41,145.4,7.12848]
[1723525908184,0.8285443,145.41,145.4,8.50353752]
[1723525908386,0.8285443,145.41,145.4,7.37946]
[1723525908677,0.8285443,145.41,145.4,7.12848]
[1723525908869,0.8285443,145.41,145.4,8.62900124]
[1723525909069,0.8285443,145.41,145.4,7.25397]
[1723525909256,4.43e-05,145.41,145.4,110.95286]
[1723525909473,32.01,145.54,145.41,0.12549]
[1723525909672,38.8813,145.54,145.48,6.8737]
[1723525909873,0.8285443,145.56,145.48,6.8737]
[1723525910165,0.8285443,145.56,145.47,17.1846]
[1723525910166,32.01,145.53,145.47,17.1846]
[1723525910360,6.8724,145.51,145.46,6.8746]
[1723525910558,0.8285443,145.56,145.5,17.1815]
[1723525910765,0.8285443,145.56,145.51,6.99779]
[1723525911252,0.8285443,145.56,145.52,6.8718]
[1723525911660,0.8285443,145.56,145.51,6.99779]
[1723525911854,0.8285443,145.56,145.52,1.37409787]
[1723525912057,0.8285443,145.56,145.52,6.8718]
[1723525912257,0.8285443,145.56,145.53,6.8713]
[1723525912455,0.8285443,145.56,145.51,0.25098]
[1723525912989,0.8285443,145.56,145.53,0.12549]
[1723525913156,0.8285443,145.56,145.53,6.99679]
[1723525913357,0.8285443,145.56,145.53,6.8713]
[1723525914582,0.8285443,145.56,145.5,0.12549]
[1723525914759,7.6986443,145.56,145.5,0.12549]
[1723525915554,0.8285443,145.56,145.49,39.73]
[1723525915858,0.8285443,145.56,145.54,6.8709]
[1723525916152,0.8285443,145.56,145.55,6.99589]
[1723525916366,0.8285443,145.56,145.55,7.12138]
[1723525916771,0.8285443,145.56,145.55,7.24687]
[1723525917156,0.8285443,145.56,145.55,7.37236]
[1723525917358,0.8285443,145.56,145.5,20.0]
[1723525917679,0.8285443,145.56,145.51,0.25098]
[1723525917875,0.8285443,145.56,145.52,0.25098]
[1723525918079,0.8285443,145.56,145.52,1.62486979]
[1723525918291,0.8285443,145.56,145.53,6.8709]
[1723525918457,0.8285443,145.56,145.54,1.37388969]
[1723525918652,0.8285443,145.56,145.54,8.24478969]
[1723525919087,0.8285443,145.56,145.55,6.8704]
[1723525919488,0.8285443,145.56,145.54,6.8708]
[1723525919663,0.8285443,145.56,145.53,6.8713]
[1723525920085,0.8285443,145.56,145.54,1.37392176]
[1723525920289,0.8285443,145.56,145.52,6.8715]
[1723525920597,39.73,145.54,145.43,29.68269]
[1723525920769,39.73,145.51,145.39,6.094]
[1723525920961,3.52543047,145.56,145.42,39.73]
[1723525921156,0.8285443,145.56,145.44,39.73]
[1723525921383,0.8285443,145.56,145.39,48.49472662]
[1723525921384,0.8285443,145.56,145.47,39.73]
[1723525921557,0.8285443,145.56,145.55,6.8704]
[1723525921980,0.8285443,145.56,145.54,6.8709]
[1723525922874,0.8285443,145.56,145.55,1.37377828]
[1723525923475,0.8285443,145.56,145.55,8.24417828]
[1723525923875,0.8285443,145.56,145.55,6.8704]
[1723525924475,0.8285443,145.56,145.55,7.12138]
[1723525924659,0.8285443,145.56,145.55,7.24687]
[1723525924859,0.8285443,145.56,145.55,7.37236]
[1723525925073,0.8285443,145.56,145.55,6.99589]
[1723525925489,0.8285443,145.56,145.55,7.12138]
[1723525925708,0.8285443,145.56,145.55,7.37236]
[1723525925874,0.8285443,145.56,145.55,52.37236]
[1723525926763,0.8285443,145.56,145.55,7.37236]
[1723525927184,0.8285443,145.56,145.55,53.74561091]
[1723525927889,0.8285443,145.56,145.55,52.37236]
[1723525928092,0.8285443,145.56,145.55,7.37236]
[1723525928476,0.8285443,145.56,145.55,6.99589]
[1723525928696,0.8285443,145.56,145.55,27.12138]
[1723525928897,0.8285443,145.56,145.55,72.37236]
[1723525929500,0.8285443,145.56,145.55,73.74549012]
[1723525929699,22.7752,145.67,145.62,6.8671]
[1723525929882,22.7752,145.67,145.61,6.8675]
[1723525930600,22.7752,145.67,145.62,6.8668]
[1723525930793,22.7752,145.67,145.58,0.12549]
[1723525930794,15.91,145.67,145.58,0.12549]
[1723525930977,0.8285443,145.7,145.67,6.8648]
[1723525931375,62.2814,145.71,145.67,6.8648]
[1723525931615,69.9375373,145.71,145.66,6.8652]
[1723525931801,63.0746373,145.71,145.67,6.8648]
[1723525931982,23.3446373,145.71,145.68,6.8643]
[1723525932177,23.3446373,145.71,145.69,6.8634]
[1723525932378,63.0746373,145.71,145.6,0.12549]
[1723525932577,39.73,145.69,145.6,0.12549]
[1723525932778,46.5939,145.69,145.64,6.866]
[1723525932979,46.5939,145.69,145.65,1.37288184]
[1723525933237,6.8644,145.68,145.65,1.37288184]
[1723525933904,6.8644,145.68,145.6,0.12549]
[1723525933905,39.73,145.69,145.66,6.8651]
[1723525934117,39.73,145.69,145.64,6.8658]
[1723525934476,39.73,145.69,145.63,6.8666]
[1723525935090,39.73,145.69,145.6,0.12549]
[1723525935091,6.8648,145.67,145.6,0.12549]
[1723525935506,39.73,145.65,145.53,21.7788]
[1723525935698,39.73,145.63,145.53,21.7788]
[1723525936009,39.73,145.63,145.53,6.6652]
[1723525936205,6.8681,145.6,145.53,6.6652]
[1723525936410,6.8681,145.6,145.49,57.55492825]
[1723525936411,6.8687,145.59,145.54,6.8709]
[1723525936594,6.8681,145.6,145.55,6.8704]
[1723525936793,39.73,145.61,145.56,1.37374857]
[1723525936992,15.1653,145.62,145.59,6.8685]
[1723525937186,15.1653,145.62,145.5,1.37355892]
[1723525937910,15.1653,145.62,145.51,0.25098]
[1723525938103,15.1653,145.62,145.52,0.12549]
[1723525938402,6.8685,145.6,145.55,6.8701]
[1723525938782,39.73,145.61,145.54,6.8708]
[1723525938783,6.8686,145.59,145.54,6.8708]
[1723525939202,6.8681,145.6,145.55,6.8704]
[1723525939598,39.73,145.61,145.49,7.67532712]
[1723525939797,39.73,145.59,145.49,6.302]
[1723525939998,6.87,145.56,145.5,1.37393934]
[1723525940183,39.73,145.57,145.45,22.7983]
[1723525940386,6.8708,145.55,145.5,6.8723]
[1723525940619,39.73,145.57,145.45,22.7983]
[1723525940806,6.8705,145.55,145.5,6.8724]
[1723525941397,6.8705,145.55,145.51,1.37420893]
[1723525941727,39.73,145.67,145.54,6.5724]
[1723525942016,21.9439,145.68,145.64,6.8661]
[1723525942389,21.9439,145.68,145.65,6.8657]
[1723525942787,7.6562373,145.71,145.66,6.8652]
[1723525943125,6.8635,145.7,145.59,1.37274643]
[1723525943297,6.8635,145.7,145.6,0.50196]
[1723525943497,6.8635,145.7,145.62,0.12549]
[1723525943702,6.8635,145.7,145.63,0.12549]
[1723525943906,0.7932373,145.71,145.63,1.74928506]
[1723525944223,20.7932373,145.71,145.63,1.74928506]
[1723525944520,20.7932373,145.71,145.63,0.37647]
[1723525944818,0.7932373,145.71,145.7,6.8634]
[1723525945031,0.7932373,145.71,145.7,52.36536]
[1723525946294,0.7932373,145.71,145.7,7.36536]
[1723525946817,0.7932373,145.71,145.7,52.36536]
[1723525948621,7.17545471,145.84,145.71,6.40929]
[1723525948919,7.17545471,145.84,145.78,6.8593]
[1723525949094,46.5867,145.85,145.79,6.8591]
[1723525949296,46.5867,145.85,145.78,6.8595]
[1723525949297,6.8571,145.84,145.78,6.8595]
[1723525949805,39.73,145.85,145.77,0.12549]
[1723525950017,6.8573,145.83,145.77,0.12549]
[1723525950311,0.9015403,145.87,145.8,6.8584]
[1723525950621,6.8586,145.81,145.76,0.12549]
[1723525950805,6.8577,145.82,145.76,7.23687]
[1723525951115,39.73,145.84,145.76,0.37647]
[1723525951513,39.73,145.84,145.78,6.8595]
[1723525951711,46.5872,145.84,145.77,6.86]
[1723525951914,6.8574,145.83,145.77,6.86]
[1723525952120,6.8582,145.81,145.75,6.861]
[1723525952495,39.73,145.85,145.76,1.37148966]
[1723525952723,39.73,145.85,145.72,21.37150934]
[1723525952929,6.8572,145.84,145.78,6.8592]
[1723525953520,6.8572,145.84,145.79,1.37150966]
[1723525953691,6.8559,145.86,145.81,6.8581]
[1723525953895,6.8559,145.86,145.82,1.37141374]
[1723525954430,6.8564,145.85,145.8,6.8586]
[1723525954724,6.8564,145.85,145.81,1.37140665]
[1723525955100,0.9015403,145.87,145.81,8.22960665]
[1723525955418,27.7569403,145.87,145.82,6.8573]
[1723525955630,20.9015403,145.87,145.74,0.12549]
[1723525955792,20.9015403,145.87,145.74,0.50196]
[1723525955995,20.9015403,145.87,145.79,6.8587]
[1723525955996,6.8564,145.85,145.79,6.8587]
[1723525956196,6.8564,145.85,145.8,1.37135345]
[1723525956503,6.8564,145.85,145.81,1.37132582]
[1723525956903,6.8568,145.84,145.79,6.8591]
[1723525957623,6.8573,145.83,145.78,6.8596]
[1723525958125,6.8578,145.82,145.77,6.86]
[1723525958733,6.8578,145.82,145.78,8.23125638]
[1723525958937,6.8578,145.82,145.78,6.8596]
[1723525959103,39.73,145.85,145.72,20.0]
[1723525959104,39.73,145.85,145.72,21.37165667]
[1723525959300,20.9015403,145.87,145.72,21.37165667]
[1723525959501,20.9015403,145.87,145.73,45.50196]
[1723525959703,6.8567,145.85,145.8,6.8586]
[1723525959904,6.8569,145.84,145.79,6.8591]
[1723525960105,6.8573,145.83,145.78,6.8595]
[1723525960306,6.8569,145.84,145.79,6.8591]
[1723525961033,6.8569,145.84,145.8,1.3715074]
[1723525961716,6.8573,145.83,145.78,6.8596]
[1723525961903,17.1405,145.86,145.71,6.2838]
[1723525962105,6.8587,145.8,145.75,6.8606]
[1723525962530,39.73,145.81,145.71,6.2838]
[1723525962829,6.8597,145.78,145.73,6.8616]
[1723525963018,6.8597,145.78,145.74,6.8614]
[1723525963213,6.8592,145.79,145.74,6.8614]
[1723525963434,6.8592,145.79,145.68,15.3905]
[1723525963435,6.8615,145.74,145.68,15.3905]
[1723525963606,6.8601,145.77,145.68,15.3905]
[1723525963805,39.73,145.79,145.69,1.37220223]
[1723525964224,39.73,145.77,145.68,15.3905]
[1723525964428,39.73,145.77,145.7,6.8634]
[1723525964633,6.8615,145.74,145.69,6.8638]
[1723525964817,6.8622,145.73,145.68,6.8642]
[1723525965018,6.8622,145.73,145.68,8.23669323]
[1723525965221,6.8615,145.74,145.69,6.8638]
[1723525965410,6.8615,145.74,145.7,1.37253594]
[1723525965736,6.8625,145.72,145.67,6.5374]
[1723525966035,6.8625,145.72,145.67,6.8647]
[1723525966543,6.8631,145.71,145.64,6.0618]
[1723525966719,6.8638,145.7,145.64,6.0618]
[1723525966925,6.1817,145.74,145.59,24.92191673]
[1723525966926,39.73,145.69,145.6,6.6457]
[1723525968055,6.8643,145.68,145.63,6.8666]
[1723525968425,6.8649,145.67,145.61,6.8672]
[1723525968627,6.8654,145.66,145.61,6.8672]
[1723525968864,6.8658,145.65,145.6,13.5137]
[1723525969033,46.5949,145.67,145.62,6.8671]
[1723525969231,39.73,145.67,145.63,8.23991321]
[1723525969526,39.73,145.67,145.6,6.6457]
[1723525969527,21.7392,145.78,145.6,6.6457]
[1723525969841,6.8625,145.72,145.67,6.8648]
[1723525970328,39.73,145.73,145.68,6.8642]
[1723525970649,46.592,145.73,145.68,6.8642]
[1723525971154,6.8624,145.72,145.67,6.8647]
[1723525971649,39.73,145.73,145.66,6.8652]
[1723525971650,6.8629,145.71,145.66,6.8652]
[1723525971851,39.73,145.73,145.61,0.25098]
[1723525972047,6.8635,145.7,145.62,0.25098]
[1723525972353,39.73,145.73,145.66,6.8651]
[1723525972354,6.8629,145.71,145.66,6.8651]
[1723525972653,39.73,145.73,145.62,0.12549]
[1723525972881,6.8635,145.7,145.62,1.3728723]
[1723525973025,6.8635,145.7,145.65,6.8656]
[1723525973256,6.8637,145.7,145.65,6.8657]
[1723525973648,6.8639,145.69,145.64,6.8661]
[1723525974046,21.7392,145.78,145.65,1.3728778]
[1723525974358,21.7392,145.78,145.62,16.2328]
[1723525974359,39.73,145.74,145.62,16.2328]
[1723525974528,6.862,145.73,145.68,6.8643]
[1723525974730,6.862,145.73,145.69,1.37254752]
[1723525974954,39.73,145.74,145.62,16.2328]
[1723525975151,6.8633,145.71,145.65,6.8653]
[1723525975356,6.8633,145.71,145.6,6.6457]
[1723525975357,39.73,145.71,145.6,6.6457]
[1723525975565,39.73,145.71,145.62,6.8671]
[1723525975566,6.8647,145.68,145.62,6.8671]
[1723525976058,6.865,145.67,145.62,6.8671]
[1723525976257,6.865,145.67,145.61,6.8675]
[1723525977032,39.73,145.66,145.6,6.6457]
[1723525977362,6.8647,145.68,145.61,1.37327788]
[1723525977546,6.8647,145.68,145.6,6.3522]
[1723525978061,39.73,145.67,145.61,1.37305117]
[1723525978299,39.73,145.67,145.62,1.37323274]
[1723525978465,39.73,145.67,145.6,6.3522]
[1723525978466,6.8658,145.65,145.6,6.3522]
[1723525978631,6.8662,145.64,145.57,16.5947]
[1723525979052,6.8667,145.63,145.56,6.3522]
[1723525979261,6.8667,145.63,145.58,6.869]
[1723525979534,6.8676,145.61,145.56,13.2218]
[1723525980337,39.73,145.64,145.6,6.8681]
[1723525980643,6.8659,145.65,145.6,6.8681]
[1723525980844,6.8659,145.65,145.56,6.3522]
[1723525981150,6.8659,145.65,145.59,6.8685]
[1723525981330,6.8653,145.66,145.6,6.8679]
[1723525981527,34.3158,145.71,145.58,0.12549]
[1723525981528,2.76044241,145.75,145.62,0.12549]
[1723525981859,6.8639,145.69,145.64,6.8658]
[1723525982258,39.73,145.73,145.65,8.23857232]
[1723525982561,46.592,145.73,145.67,6.8644]
[1723525982747,39.73,145.73,145.66,6.8652]
[1723525983480,46.592,145.73,145.67,8.23763409]
[1723525983770,6.8624,145.72,145.63,0.12549]
[1723525983969,6.8624,145.72,145.63,1.8746805]
[1723525984151,39.73,145.73,145.69,6.8634]
[1723525984357,39.73,145.73,145.7,8.23588018]
[1723525984552,39.73,145.73,145.7,6.8633]
[1723525984756,39.73,145.76,145.71,1.37241015]
[1723525984994,39.73,145.76,145.63,1.87428075]
[1723525985452,46.5906,145.76,145.7,6.8629]
[1723525985653,6.8611,145.75,145.7,6.8629]
[1723525986369,46.5907,145.76,145.71,6.8628]
[1723525986752,39.73,145.76,145.72,6.8624]
[1723525986956,39.73,145.76,145.63,1.87428075]
[1723525986957,39.73,145.76,145.63,0.50196]
[1723525987872,6.8612,145.75,145.7,6.863]
[1723525988346,46.5906,145.76,145.71,6.8629]
[1723525989353,39.73,145.76,145.72,8.23473311]
[1723525989846,39.73,145.76,145.72,6.8624]